fUSD/lending_fUSD_20240329
["ID","MTS","AMOUNT","RATE_DAILY","PERIOD"]
[320972270,1711725067251,-500.0,0.00052054,120]
[320972271,1711725067261,-516.44,0.00052054,120]
[320972272,1711725067270,-500.0,0.00052054,120]
[320972273,1711725067280,-639.68072584,0.00052054,120]
[320972274,1711725067290,-500.0,0.00052054,120]
[320972275,1711725067299,-4432.67,0.00052054,120]
[320972276,1711725067311,-500.0,0.00052054,120]
[320972277,1711725067320,-500.0,0.00052054,120]
[320972278,1711725067329,-500.0,0.00052054,120]
[320972279,1711725067339,-1344.8,0.00052054,120]
[320972280,1711725067348,-500.0,0.00052054,120]
[320972281,1711725067357,-500.0,0.00052054,120]
[320972282,1711725067366,-540.96,0.00052054,120]
[320972283,1711725067375,-4526.07,0.00052054,120]
[320972284,1711725067385,-3423.87,0.00052054,120]
[320972285,1711725067394,-500.0,0.00052054,120]
[320972286,1711725067403,-500.0,0.00052054,120]
[320972287,1711725067413,-500.0,0.00052054,120]
[320972288,1711725067422,-500.0,0.00052054,120]
[320972289,1711725067432,-500.0,0.00052054,120]
[320972290,1711725067441,-736.71,0.00052054,120]
[320972291,1711725067450,-500.0,0.00052054,120]
[320972292,1711725067460,-500.0,0.00052054,120]
[320972293,1711725067617,-500.0,0.00052054,120]
[320972294,1711725067627,-500.0,0.00052054,120]
[320972295,1711725067636,-784.08,0.00052054,21]
[320972296,1711725067645,-1932.64,0.00052054,120]
[320972297,1711725067654,-587.66,0.00052054,120]
[320972298,1711725067664,-616.86,0.00052054,120]
[320972299,1711725067674,-500.0,0.00052054,120]
[320972300,1711725067683,-4065.91,0.00052054,120]
[320972301,1711725067692,-1193.78,0.00052054,120]
[320972302,1711725067702,-500.0,0.00052054,120]
[320972303,1711725067711,-500.0,0.00052054,120]
[320972304,1711725067720,-500.0,0.00052054,120]
[320972305,1711725067729,-1940.59,0.00052054,120]
[320972306,1711725067738,-552.73698802,0.00052054,120]
[320972307,1711725067747,-951.41,0.00052054,120]
[320972308,1711725067757,-500.0,0.00052054,120]
[320972309,1711725067766,-500.0,0.00052054,120]
[320972310,1711725067775,-500.0,0.00052054,120]
[320972311,1711725067784,-500.0,0.00052054,120]
[320972312,1711725067793,-500.05,0.00052054,120]
[320972313,1711725067804,-853.25,0.00052054,120]
[320972314,1711725067816,-500.0,0.00052054,120]
[320972315,1711725067825,-570.44,0.00052054,120]
[320972316,1711725067835,-500.0,0.00052054,120]
[320972317,1711725067846,-869.21,0.00052054,120]
[320972318,1711725067858,-218.02,0.00052054,120]
[320972319,1711725067867,-500.0,0.00052054,120]
[320972320,1711725067877,-645.22521331,0.00052054,120]
[320972321,1711725067886,-1369.55,0.00052054,120]
[320972322,1711725067895,-686.24,0.00052054,120]
[320972323,1711725067906,-656.0,0.00052054,120]
[320972324,1711725067915,-1965.79,0.00052054,120]
[320972325,1711725067925,-500.0,0.00052054,120]
[320972326,1711725067934,-1009.79,0.00052054,120]
[320972327,1711725067943,-500.0,0.00052054,120]
[320972328,1711725067952,-1502.83,0.00052054,120]
[320972329,1711725067962,-716.55,0.00052054,120]
[320972330,1711725067971,-951.9,0.00052054,120]
[320972331,1711725067980,-500.0,0.00052054,120]
[320972332,1711725067990,-579.39,0.00052054,120]
[320972333,1711725068000,-588.56,0.00052054,120]
[320972334,1711725068009,-1875.29,0.00052054,120]
[320972335,1711725068018,-2456.85,0.00052054,120]
[320972336,1711725068028,-500.0,0.00052054,120]
[320972337,1711725068037,-500.0,0.00052054,120]
[320972338,1711725068047,-1392.05,0.00052054,120]
[320972339,1711725068057,-508.61,0.00052054,120]
[320972340,1711725068066,-676.92,0.00052054,120]
[320972341,1711725068075,-1162.06,0.00052054,120]
[320972342,1711725068085,-500.0,0.00052054,120]
[320972343,1711725068095,-500.0,0.00052054,120]
[320972344,1711725068105,-530.42,0.00052054,120]
[320972345,1711725068115,-909.52,0.00052054,120]
[320972346,1711725068124,-2245.64,0.00052054,120]
[320972347,1711725068133,-561.59,0.00052054,120]
[320972348,1711725068142,-704.18,0.00052054,120]
[320972349,1711725068152,-500.0,0.00052054,120]
[320972350,1711725068161,-1923.68,0.00052054,120]
[320972351,1711725068171,-964.16,0.00052054,120]
[320972352,1711725068180,-2964.94,0.00052054,120]
[320972353,1711725068190,-816.71,0.00052054,120]
[320972354,1711725068199,-549.02,0.00052054,120]
[320972355,1711725068209,-566.67,0.00052054,120]
[320972356,1711725068218,-500.0,0.00052054,120]
[320972357,1711725068229,-985.65,0.00052054,120]
[320972358,1711725068238,-500.0,0.00052054,120]
[320972359,1711725068247,-1183.52,0.00052054,120]
[320972360,1711725068257,-500.0,0.00052054,120]
[320972361,1711725068266,-523.71,0.00052054,120]
[320972362,1711725068276,-1007.25,0.00052054,120]
[320972363,1711725068286,-3361.47,0.00052054,120]
[320972364,1711725068296,-500.0,0.00052054,120]
[320972365,1711725068305,-500.0,0.00052054,120]
[320972366,1711725068315,-2654.75,0.00052054,120]
[320972367,1711725068325,-699.89,0.00052054,120]
[320972368,1711725068334,-824.05,0.00052054,120]
[320972369,1711725068343,-500.0,0.00052054,120]
[320972370,1711725068352,-540.59,0.00052054,120]
[320972371,1711725068361,-180.10613291,0.00052054,120]
[320972372,1711725068370,-158.49334373,0.00052077,60]
[320972373,1711725068379,-158.49334373,0.00052197,60]
[320972374,1711725068388,-209.56666667,0.00052219,120]
[320972375,1711725068397,-7869.07797687,0.0005222,8]
[320972376,1711725068407,-150.0,0.00052283,120]
[320972377,1711725068416,-237.59,0.00052328,120]
[320972378,1711725068425,-500.0,0.00052328,120]
[320972379,1711725068435,-581.76,0.00052328,120]
[320972380,1711725068445,-500.0,0.00052328,120]
[320972381,1711725068454,-500.0,0.00052328,120]
[320972382,1711725068464,-404.48,0.00052328,120]
[320972383,1711725068473,-409.02985648,0.00052328,120]
[320972384,1711725068482,-500.0,0.00052328,120]
[320972385,1711725068492,-500.0,0.00052328,120]
[320972386,1711725068501,-226.64,0.00052328,120]
[320972387,1711725068511,-500.0,0.00052328,120]
[320972388,1711725068521,-500.0,0.00052328,120]
[320972389,1711725068530,-4432.67,0.00052328,120]
[320972390,1711725068540,-500.0,0.00052328,120]
[320972391,1711725068549,-500.0,0.00052328,120]
[320972392,1711725068560,-500.0,0.00052328,120]
[320972393,1711725068570,-1344.8,0.00052328,120]
[320972394,1711725068580,-500.0,0.00052328,120]
[320972395,1711725068589,-500.0,0.00052328,120]
[320972396,1711725068598,-540.96,0.00052328,120]
[320972397,1711725068607,-4526.07,0.00052328,120]
[320972398,1711725068618,-3423.87,0.00052328,120]
[320972399,1711725068628,-500.0,0.00052328,120]
[320972400,1711725068639,-500.0,0.00052328,120]
[320972401,1711725068648,-500.0,0.00052328,120]
[320972402,1711725068658,-500.0,0.00052328,120]
[320972403,1711725068667,-500.0,0.00052328,120]
[320972404,1711725068676,-736.71,0.00052328,120]
[320972405,1711725068686,-500.0,0.00052328,120]
[320972406,1711725068695,-500.0,0.00052328,120]
[320972407,1711725068704,-500.0,0.00052328,120]
[320972408,1711725068714,-500.0,0.00052328,120]
[320972409,1711725068723,-784.08,0.00052328,21]
[320972410,1711725068732,-1932.64,0.00052328,120]
[320972411,1711725068742,-587.66,0.00052328,120]
[320972412,1711725068751,-616.86,0.00052328,120]
[320972413,1711725068761,-500.0,0.00052328,120]
[320972414,1711725068770,-4065.91,0.00052328,120]
[320972415,1711725068786,-1193.78,0.00052328,120]
[320972416,1711725068806,-500.0,0.00052328,120]
[320972417,1711725068823,-500.0,0.00052328,120]
[320972418,1711725068837,-500.0,0.00052328,120]
[320972419,1711725068853,-1940.59,0.00052328,120]
[320972420,1711725068871,-951.41,0.00052328,120]
[320972421,1711725068886,-500.0,0.00052328,120]
[320972422,1711725068899,-500.0,0.00052328,120]
[320972423,1711725068915,-500.0,0.00052328,120]
[320972424,1711725068931,-500.0,0.00052328,120]
[320972425,1711725068946,-500.05,0.00052328,120]
[320972426,1711725068960,-853.25,0.00052328,120]
[320972427,1711725068975,-500.0,0.00052328,120]
[320972428,1711725068991,-570.44,0.00052328,120]
[320972429,1711725069007,-500.0,0.00052328,120]
[320972430,1711725069022,-869.21,0.00052328,120]
[320972431,1711725069036,-500.0,0.00052328,120]
[320972432,1711725069050,-1369.55,0.00052328,120]
[320972433,1711725069068,-686.24,0.00052328,120]
[320972434,1711725069085,-656.0,0.00052328,120]
[320972435,1711725069098,-1965.79,0.00052328,120]
[320972436,1711725069110,-500.0,0.00052328,120]
[320972437,1711725069123,-1009.79,0.00052328,120]
[320972438,1711725069136,-500.0,0.00052328,120]
[320972439,1711725069151,-1502.83,0.00052328,120]
[320972440,1711725069163,-716.55,0.00052328,120]
[320972441,1711725069176,-951.9,0.00052328,120]
[320972442,1711725069188,-500.0,0.00052328,120]
[320972443,1711725069202,-579.39,0.00052328,120]
[320972444,1711725069215,-588.56,0.00052328,120]
[320972445,1711725069227,-1875.29,0.00052328,120]
[320972446,1711725069240,-2456.85,0.00052328,120]
[320972447,1711725069253,-500.0,0.00052328,120]
[320972448,1711725069266,-500.0,0.00052328,120]
[320972449,1711725069278,-1392.05,0.00052328,120]
[320972450,1711725069292,-508.61,0.00052328,120]
[320972451,1711725069305,-676.92,0.00052328,120]
[320972452,1711725069318,-1162.06,0.00052328,120]
[320972453,1711725069332,-500.0,0.00052328,120]
[320972454,1711725069344,-500.0,0.00052328,120]
[320972455,1711725069357,-530.42,0.00052328,120]
[320972456,1711725069370,-909.52,0.00052328,120]
[320972457,1711725069383,-2245.64,0.00052328,120]
[320972458,1711725069396,-561.59,0.00052328,120]
[320972459,1711725069408,-704.18,0.00052328,120]
[320972460,1711725069421,-500.0,0.00052328,120]
[320972461,1711725069434,-1923.68,0.00052328,120]
[320972462,1711725069446,-964.16,0.00052328,120]
[320972463,1711725069458,-2964.94,0.00052328,120]
[320972464,1711725069470,-816.71,0.00052328,120]
[320972465,1711725069484,-549.02,0.00052328,120]
[320972466,1711725069497,-566.67,0.00052328,120]
[320972467,1711725069509,-500.0,0.00052328,120]
[320972468,1711725069522,-985.65,0.00052328,120]
[320972469,1711725069534,-500.0,0.00052328,120]
[320972470,1711725069547,-1183.52,0.00052328,120]
[320972471,1711725069560,-500.0,0.00052328,120]
[320972472,1711725069573,-523.71,0.00052328,120]
[320972473,1711725069586,-1007.25,0.00052328,120]
[320972474,1711725069599,-3361.47,0.00052328,120]
[320972475,1711725069612,-500.0,0.00052328,120]
[320972476,1711725069624,-500.0,0.00052328,120]
[320972477,1711725069637,-2654.75,0.00052328,120]
[320972478,1711725069650,-699.89,0.00052328,120]
[320972479,1711725069662,-824.05,0.00052328,120]
[320972480,1711725069675,-500.0,0.00052328,120]
[320972481,1711725069687,-540.59,0.00052328,120]
[320972482,1711725069699,-500.0,0.00052602,120]
[320972483,1711725069711,-581.76,0.00052602,120]
[320972484,1711725069723,-500.0,0.00052602,120]
[320972485,1711725069735,-500.0,0.00052602,120]
[320972486,1711725069747,-353.6,0.00052602,120]
[320972487,1711725069759,-500.0,0.00052602,120]
[320972488,1711725069771,-500.0,0.00052602,120]
[320972489,1711725069784,-500.0,0.00052602,120]
[320972490,1711725069795,-4432.67,0.00052602,120]
[320972491,1711725069810,-500.0,0.00052602,120]
[320972492,1711725069823,-500.0,0.00052602,120]
[320972493,1711725069835,-500.0,0.00052602,120]
[320972494,1711725069848,-1344.8,0.00052602,120]
[320972495,1711725069860,-428.47,0.00052602,120]
[320972496,1711725069871,-500.0,0.00052602,120]
[320972497,1711725069883,-540.96,0.00052602,120]
[320972498,1711725069896,-4526.07,0.00052602,120]
[320972499,1711725069909,-3423.87,0.00052602,120]
[320972500,1711725069924,-500.0,0.00052602,120]
[320972501,1711725069937,-554.62,0.00052602,120]
[320972502,1711725069950,-500.0,0.00052602,120]
[320972503,1711725069963,-500.0,0.00052602,120]
[320972504,1711725069977,-559.86,0.00052602,120]
[320972505,1711725069989,-736.71,0.00052602,120]
[320972506,1711725070003,-303.58,0.00052602,120]
[320972507,1711725070016,-500.0,0.00052602,120]
[320972508,1711725070029,-500.0,0.00052602,120]
[320972509,1711725070041,-500.0,0.00052602,120]
[320972510,1711725070054,-784.08,0.00052602,21]
[320972511,1711725070069,-1932.64,0.00052602,120]
[320972512,1711725070082,-587.66,0.00052602,120]
[320972513,1711725070095,-616.86,0.00052602,120]
[320972514,1711725070107,-500.0,0.00052602,120]
[320972515,1711725070119,-4065.91,0.00052602,120]
[320972516,1711725070131,-1193.78,0.00052602,120]
[320972517,1711725070144,-500.0,0.00052602,120]
[320972518,1711725070156,-500.0,0.00052602,120]
[320972519,1711725070167,-500.0,0.00052602,120]
[320972520,1711725070180,-1940.59,0.00052602,120]
[320972521,1711725070192,-951.41,0.00052602,120]
[320972522,1711725070204,-500.0,0.00052602,120]
[320972523,1711725070216,-500.0,0.00052602,120]
[320972524,1711725070228,-500.0,0.00052602,120]
[320972525,1711725070242,-500.0,0.00052602,120]
[320972526,1711725070256,-500.05,0.00052602,120]
[320972527,1711725070270,-853.25,0.00052602,120]
[320972528,1711725070282,-500.0,0.00052602,120]
[320972529,1711725070292,-570.44,0.00052602,120]
[320972530,1711725070301,-500.0,0.00052602,120]
[320972531,1711725070511,-869.21,0.00052602,120]
[320972532,1711725070532,-500.0,0.00052602,120]
[320972533,1711725070544,-1369.55,0.00052602,120]
[320972534,1711725070554,-686.24,0.00052602,120]
[320972535,1711725070564,-656.0,0.00052602,120]
[320972536,1711725070573,-1965.79,0.00052602,120]
[320972537,1711725070582,-500.0,0.00052602,120]
[320972538,1711725070591,-1009.79,0.00052602,120]
[320972539,1711725070600,-422.50839992,0.00052602,120]
[320972540,1711725070610,-1502.83,0.00052602,120]
[320972541,1711725070619,-716.55,0.00052602,120]
[320972542,1711725070629,-951.9,0.00052602,120]
[320972543,1711725070639,-500.0,0.00052602,120]
[320972544,1711725070649,-579.39,0.00052602,120]
[320972545,1711725070658,-588.56,0.00052602,120]
[320972546,1711725070667,-1875.29,0.00052602,120]
[320972547,1711725070676,-2456.85,0.00052602,120]
[320972548,1711725070686,-500.0,0.00052602,120]
[320972549,1711725070695,-500.0,0.00052602,120]
[320972550,1711725070704,-1392.05,0.00052602,120]
[320972551,1711725070713,-508.61,0.00052602,120]
[320972552,1711725070723,-676.92,0.00052602,120]
[320972553,1711725070733,-1162.06,0.00052602,120]
[320972554,1711725070742,-500.0,0.00052602,120]
[320972555,1711725070751,-500.0,0.00052602,120]
[320972556,1711725070760,-530.42,0.00052602,120]
[320972557,1711725070770,-909.52,0.00052602,120]
[320972558,1711725070779,-2245.64,0.00052602,120]
[320972559,1711725070789,-561.59,0.00052602,120]
[320972560,1711725070798,-704.18,0.00052602,120]
[320972561,1711725070808,-500.0,0.00052602,120]
[320972562,1711725070821,-1923.68,0.00052602,120]
[320972563,1711725070830,-964.16,0.00052602,120]
[320972564,1711725070840,-2964.94,0.00052602,120]
[320972565,1711725070849,-816.71,0.00052602,120]
[320972566,1711725070859,-549.02,0.00052602,120]
[320972567,1711725070869,-566.67,0.00052602,120]
[320972568,1711725070878,-500.0,0.00052602,120]
[320972569,1711725070887,-985.65,0.00052602,120]
[320972570,1711725070897,-500.0,0.00052602,120]
[320972571,1711725070907,-1183.52,0.00052602,120]
[320972572,1711725070915,-500.0,0.00052602,120]
[320972573,1711725070925,-523.71,0.00052602,120]
[320972574,1711725070935,-1007.25,0.00052602,120]
[320972575,1711725070944,-3361.47,0.00052602,120]
[320972576,1711725070953,-500.0,0.00052602,120]
[320972577,1711725070963,-500.0,0.00052602,120]
[320972578,1711725070973,-2654.75,0.00052602,120]
[320972579,1711725070983,-699.89,0.00052602,120]
[320972580,1711725070994,-824.05,0.00052602,120]
[320972581,1711725071003,-500.0,0.00052602,120]
[320972582,1711725071013,-540.59,0.00052602,120]
[320972583,1711725071022,-159.16,0.00052646,120]
[320972584,1711725071031,-156.57235486,0.00052647,60]
[320972585,1711725071040,-157.52568574,0.00052783,60]
[320972586,1711725071050,-670.53,0.00052795,120]
[320972587,1711725071059,-20118.94253573,0.000528,7]
[320972588,1711725071071,-209.56666667,0.00052822,120]
[320972589,1711725071081,-157.78437131,0.00052827,60]
[320972590,1711725071090,-151.0,0.00052849,120]
[320972591,1711725071100,-152.41256319,0.00052872,60]
[320972592,1711725071110,-500.0,0.00052876,120]
[320972593,1711725071119,-581.76,0.00052876,120]
[320972594,1711725071128,-500.0,0.00052876,120]
[320972595,1711725071138,-500.0,0.00052876,120]
[320972596,1711725071147,-500.0,0.00052876,120]
[320972597,1711725071156,-234.75130243,0.00052876,120]
[320972598,1711725071165,-376.57,0.00052876,120]
[320972599,1711725071174,-4432.67,0.00052876,120]
[320972600,1711725071184,-500.0,0.00052876,120]
[320972601,1711725071193,-500.0,0.00052876,120]
[320972602,1711725071203,-463.82,0.00052876,120]
[320972603,1711725071212,-1344.8,0.00052876,120]
[320972604,1711725071221,-500.0,0.00052876,120]
[320972605,1711725071230,-540.96,0.00052876,120]
[320972606,1711725071239,-4526.07,0.00052876,120]
[320972607,1711725071248,-3423.87,0.00052876,120]
[320972608,1711725071258,-500.0,0.00052876,120]
[320972609,1711725071266,-500.0,0.00052876,120]
[320972610,1711725071275,-500.0,0.00052876,120]
[320972611,1711725071285,-736.71,0.00052876,120]
[320972612,1711725071294,-500.0,0.00052876,120]
[320972613,1711725071303,-500.0,0.00052876,120]
[320972614,1711725071314,-500.0,0.00052876,120]
[320972615,1711725071322,-784.08,0.00052876,21]
[320972616,1711725071331,-1932.64,0.00052876,120]
[320972617,1711725071340,-587.66,0.00052876,120]
[320972618,1711725071349,-616.86,0.00052876,120]
[320972619,1711725071358,-500.0,0.00052876,120]
[320972620,1711725071367,-4065.91,0.00052876,120]
[320972621,1711725071376,-1193.78,0.00052876,120]
[320972622,1711725071385,-500.0,0.00052876,120]
[320972623,1711725071394,-500.0,0.00052876,120]
[320972624,1711725071403,-500.0,0.00052876,120]
[320972625,1711725071413,-1940.59,0.00052876,120]
[320972626,1711725071422,-951.41,0.00052876,120]
[320972627,1711725071431,-500.0,0.00052876,120]
[320972628,1711725071440,-500.0,0.00052876,120]
[320972629,1711725071449,-500.0,0.00052876,120]
[320972630,1711725071458,-500.0,0.00052876,120]
[320972631,1711725071468,-500.05,0.00052876,120]
[320972632,1711725071477,-853.25,0.00052876,120]
[320972633,1711725071487,-500.0,0.00052876,120]
[320972634,1711725071497,-570.44,0.00052876,120]
[320972635,1711725071506,-500.0,0.00052876,120]
[320972636,1711725071515,-869.21,0.00052876,120]
[320972637,1711725071525,-500.0,0.00052876,120]
[320972638,1711725071534,-1369.55,0.00052876,120]
[320972639,1711725071543,-686.24,0.00052876,120]
[320972640,1711725071552,-656.0,0.00052876,120]
[320972641,1711725071564,-1965.79,0.00052876,120]
[320972642,1711725071574,-500.0,0.00052876,120]
[320972643,1711725071583,-1009.79,0.00052876,120]
[320972644,1711725071592,-1502.83,0.00052876,120]
[320972645,1711725071602,-716.55,0.00052876,120]
[320972646,1711725071611,-951.9,0.00052876,120]
[320972647,1711725071621,-500.0,0.00052876,120]
[320972648,1711725071630,-579.39,0.00052876,120]
[320972649,1711725071640,-588.56,0.00052876,120]
[320972650,1711725071650,-1875.29,0.00052876,120]
[320972651,1711725071659,-2456.85,0.00052876,120]
[320972652,1711725071669,-554.42723505,0.00052876,120]
[320972653,1711725071678,-500.0,0.00052876,120]
[320972654,1711725071687,-1392.05,0.00052876,120]
[320972655,1711725071697,-508.61,0.00052876,120]
[320972656,1711725071706,-1162.06,0.00052876,120]
[320972657,1711725071716,-676.92,0.00052876,120]
[320972658,1711725071725,-489.86,0.00052876,120]
[320972659,1711725071735,-500.0,0.00052876,120]
[320972660,1711725071744,-530.42,0.00052876,120]
[320972661,1711725071754,-909.52,0.00052876,120]
[320972662,1711725071763,-2245.64,0.00052876,120]
[320972663,1711725071773,-561.59,0.00052876,120]
[320972664,1711725071783,-704.18,0.00052876,120]
[320972665,1711725071793,-500.0,0.00052876,120]
[320972666,1711725071803,-1923.68,0.00052876,120]
[320972667,1711725071817,-964.16,0.00052876,120]
[320972668,1711725071829,-2964.94,0.00052876,120]
[320972669,1711725071839,-816.71,0.00052876,120]
[320972670,1711725071851,-549.02,0.00052876,120]
[320972671,1711725071860,-566.67,0.00052876,120]
[320972672,1711725071870,-500.0,0.00052876,120]
[320972673,1711725071879,-985.65,0.00052876,120]
[320972674,1711725071888,-500.0,0.00052876,120]
[320972675,1711725071899,-1183.52,0.00052876,120]
[320972676,1711725071909,-500.0,0.00052876,120]
[320972677,1711725071920,-523.71,0.00052876,120]
[320972678,1711725071929,-1007.25,0.00052876,120]
[320972679,1711725071938,-3361.47,0.00052876,120]
[320972680,1711725071948,-500.0,0.00052876,120]
[320972681,1711725071957,-500.0,0.00052876,120]
[320972682,1711725071967,-2654.75,0.00052876,120]
[320972683,1711725071976,-699.89,0.00052876,120]
[320972684,1711725071986,-824.05,0.00052876,120]
[320972685,1711725071996,-500.0,0.00052876,120]
[320972686,1711725072006,-291034.46492784,0.000529,22]
[320972687,1711725072201,-49064.07710555,0.000529,22]
[320972688,1711725072214,-266.94,0.000529,22]
[320972689,1711725072353,-585.53,0.00049589,120]
[320972690,1711725072363,-114175.4692982,0.000529,22]
[320972691,1711725072375,-1069.6536,0.000529,22]
[320972692,1711725072442,-618.9412554,0.000529,22]
[320972693,1711725072463,-1743.94416482,0.00049315,120]
[320972694,1711725072475,-247.39583518,0.00049315,120]
[320972695,1711725072485,-540.59,0.00052876,120]
[320972696,1711725072494,-215.83508375,0.000529,22]
[320972697,1711725072507,-3972.30987858,0.000529,22]
[320972698,1711725072610,-488.61381741,0.00050958,120]
[320972699,1711725072869,-1463.32183156,0.000488,2]
[320972700,1711725072914,-200.51802165,0.000488,2]
[320972701,1711725072925,-593.49,0.00049315,120]
[320972702,1711725072936,-500.0,0.00049315,120]
[320972703,1711725072946,-500.0,0.00049315,120]
[320972704,1711725072956,-151.0,0.00049315,120]
[320972705,1711725072966,-1991.34,0.00049589,120]
[320972706,1711725072976,-593.49,0.00049589,120]
[320972707,1711725072987,-1991.34,0.00049863,120]
[320972708,1711725072997,-585.53,0.00049863,120]
[320972709,1711725073009,-593.49,0.00049863,120]
[320972710,1711725073020,-585.53,0.00050136,120]
[320972711,1711725073030,-1991.34,0.00050136,120]
[320972712,1711725073040,-593.49,0.00050136,120]
[320972713,1711725073051,-1991.34,0.0005041,120]
[320972714,1711725073062,-585.53,0.0005041,120]
[320972715,1711725073072,-151.0,0.00050684,120]
[320972716,1711725073082,-1991.34,0.00050684,120]
[320972717,1711725073094,-585.53,0.00050684,120]
[320972718,1711725073104,-11.38618259,0.00050958,120]
[320972719,1711725073114,-585.53,0.00050958,120]
[320972720,1711725073125,-500.0,0.00051232,120]
[320972721,1711725073136,-213.30396405,0.00051232,120]
[320972722,1711725073150,-372.22603595,0.00051232,120]
[320972723,1711725073161,-163.63184656,0.00051506,120]
[320972724,1711725073174,-336.36815344,0.00051506,120]
[320972725,1711725073185,-256.53396405,0.0005178,120]
[320972726,1711725073197,-243.46603595,0.0005178,120]
[320972727,1711725073208,-151.0,0.000518,14]
[320972728,1711725073218,-199.924081,0.000518,120]
[320972729,1711725073229,-520.52797739,0.00052054,120]
[320972730,1711725073240,-1968.24108002,0.000529,22]
[320972731,1711725073253,-2840.61461946,0.000529,22]
[320972732,1711725073270,-1991.34,0.00050958,120]
[320972733,1711725073281,-316545.6666089,0.000529,22]
[320972734,1711725073655,-220.43294484,0.000249,9]
[320972735,1711725073666,-211.12448875,0.00030328,4]
[320972736,1711725073677,-532.35328105,0.00045509,120]
[320972737,1711725073693,-1656.66671895,0.00045509,120]
[320972738,1711725073704,-883.78,0.00049315,120]
[320972739,1711725073714,-514.74,0.00049315,120]
[320972740,1711725073724,-883.78,0.00049589,120]
[320972741,1711725073913,-883.78,0.00049863,120]
[320972742,1711725073923,-883.78,0.00050136,120]
[320972743,1711725073933,-593.49,0.0005041,120]
[320972744,1711725073942,-883.78,0.0005041,120]
[320972745,1711725073952,-593.49,0.00050684,120]
[320972746,1711725073962,-883.78,0.00050684,120]
[320972747,1711725073971,-883.78,0.00050958,120]
[320972748,1711725073980,-593.49,0.00050958,120]
[320972749,1711725073991,-1991.34,0.00051232,120]
[320972750,1711725074001,-883.78,0.00051232,120]
[320972751,1711725074010,-585.53,0.00051506,120]
[320972752,1711725074020,-1991.34,0.00051506,120]
[320972753,1711725074030,-585.53,0.0005178,120]
[320972754,1711725074039,-1991.34,0.0005178,120]
[320972755,1711725074049,-585.53,0.00052054,120]
[320972756,1711725074059,-1991.34,0.00052054,120]
[320972757,1711725074073,-585.53,0.00052328,120]
[320972758,1711725074083,-1991.34,0.00052328,120]
[320972759,1711725074093,-585.53,0.00052602,120]
[320972760,1711725074102,-1991.34,0.00052602,120]
[320972761,1711725074113,-1991.34,0.00052876,120]
[320972762,1711725074125,-585.53,0.00052876,120]
[320972763,1711725074135,-119518.34655825,0.000529,22]
[320972764,1711725074148,-1452.1439932,0.000529,22]
[320972765,1711725074160,-215740.31343751,0.000529,22]
[320972766,1711725074172,-44419.2407328,0.000529,22]
[320972767,1711725074184,-644.23027824,0.000529,22]
[320972768,1711725074195,-2782.01551069,0.000529,22]
[320972769,1711725074207,-2156.46368774,0.000529,22]